bitfinex/quotes_ETHUSD_20260217
["timestamp","ask_amount","ask_price","bid_price","bid_amount"]
[1771293266147,0.48180849,1995.8,1994.6,0.47104055]
[1771293266342,0.48180849,1995.8,1994.8,0.47104055]
[1771293266642,1.06,1996.0,1994.9,1.72423619]
[1771293266801,1.54180849,1996.0,1994.9,1.72423619]
[1771293267432,0.48180849,1996.0,1994.9,1.72423619]
[1771293268037,0.48180849,1996.0,1995.0,0.47104055]
[1771293268615,1.73432798,1996.0,1995.1,1.25307002]
[1771293269299,1.25251949,1996.0,1995.1,1.25307002]
[1771293269513,0.48180849,1995.9,1995.1,1.25307002]
[1771293270835,2.79329355,1996.1,1995.1,1.72411057]
[1771293271003,1.73429355,1996.1,1995.1,1.72411057]
[1771293271199,1.7342623,1996.1,1995.2,0.47104055]
[1771293272232,0.48180849,1996.0,1995.1,1.25307002]
[1771293272613,0.48180849,1995.8,1995.0,0.001]
[1771293273653,1.73436413,1996.0,1995.0,0.47204055]
[1771293273957,6.9706651,1996.2,1995.0,0.47204055]
[1771293273958,0.48180849,1996.2,1995.0,0.47204055]
[1771293274805,1.25244226,1996.1,1995.1,1.72411057]
[1771293275010,1.73425075,1996.1,1995.1,1.72411057]
[1771293275845,0.48180849,1996.4,1995.2,0.47104055]
[1771293276151,1.057,1996.3,1995.2,0.47104055]
[1771293277052,2.79108647,1996.4,1995.3,1.72398496]
[1771293278057,2.30927798,1996.4,1995.4,0.47104055]
[1771293278353,2.7910635,1996.4,1995.4,0.47104055]
[1771293278532,1.7340635,1996.4,1995.4,0.47104055]
[1771293278735,0.48180849,1996.3,1995.4,0.47104055]
[1771293279131,0.48180849,1996.3,1995.5,1.25281884]
[1771293279937,1.73412811,1996.3,1995.5,1.25281884]
[1771293280437,1.73412749,1996.3,1995.5,1.25281884]
[1771293280950,0.48180849,1996.3,1995.5,1.25281884]
[1771293281128,1.25230295,1996.4,1995.5,1.72385939]
[1771293281725,0.48180849,1996.3,1995.5,1.25281884]
[1771293282118,0.48180849,1996.3,1995.3,5.01165728]
[1771293283047,0.48180849,1996.3,1995.3,5.48269783]
[1771293283223,0.48180849,1996.3,1995.4,0.47104055]
[1771293283723,1.73404459,1996.5,1995.4,0.47104055]
[1771293284066,2.78904459,1996.5,1995.4,0.47104055]
[1771293284820,0.0011,1996.6,1995.6,0.45806176]
[1771293285043,0.0011,1996.6,1995.7,1.71075505]
[1771293285238,0.0011,1996.6,1995.8,0.45806176]
[1771293285547,0.50082374,1996.6,1995.7,2.25869329]
[1771293285924,0.49972374,1996.4,1995.4,2.25888162]
[1771293286345,0.49972374,1996.4,1995.4,1.25288162]
[1771293287249,0.49972374,1996.4,1995.5,0.45806176]
[1771293287458,1.75198349,1996.4,1995.5,0.45806176]
[1771293288447,0.49972374,1996.3,1995.4,1.25288162]
[1771293289358,1.72292683,1996.2,1995.4,1.25288162]
[1771293290651,0.47054731,1996.2,1995.4,1.25288162]
[1771293291248,1.72293141,1996.2,1995.4,1.25288162]
[1771293292551,0.47054731,1996.1,1995.4,1.25288162]
[1771293293627,0.47054731,1996.1,1995.2,0.49421108]
[1771293293826,1.72299812,1996.1,1995.2,0.49421108]
[1771293294049,0.47054731,1996.0,1995.2,0.001]
[1771293296231,0.47054731,1995.8,1995.2,0.001]
[1771293296733,1.25256776,1995.9,1995.2,0.001]
[1771293298045,1.72311507,1995.9,1995.2,0.001]
[1771293298355,0.47054731,1995.8,1995.2,0.001]
[1771293299242,1.25256776,1995.9,1995.3,0.001]
[1771293299447,1.72309328,1996.0,1995.3,0.001]
[1771293300753,2.15658321,1996.1,1995.3,0.001]
[1771293300945,0.47054731,1996.0,1995.3,0.001]
[1771293302068,0.0011,1996.1,1995.4,0.49321108]
[1771293302364,0.0011,1996.1,1995.6,0.49321108]
[1771293302983,0.0011,1996.6,1995.7,0.49321108]
[1771293303136,0.0011,1996.6,1995.9,0.49321108]
[1771293303672,0.0011,1996.6,1996.0,0.49321108]
[1771293304453,0.0011,1996.6,1996.1,1.74565334]
[1771293305164,0.0011,1996.6,1996.2,0.49321108]
[1771293305666,0.0011,1996.6,1996.1,1.25244226]
[1771293307071,0.0011,1996.6,1996.2,0.49321108]
[1771293307664,0.47054731,1997.3,1996.2,0.49321108]
[1771293309050,0.47054731,1997.3,1996.3,1.74552786]
[1771293309255,0.47054731,1997.3,1996.4,0.49321108]
[1771293309787,1.25161114,1997.5,1996.4,0.49321108]
[1771293309989,1.72215845,1997.5,1996.4,0.49321108]
[1771293310149,5.00728091,1997.6,1996.4,0.49321108]
[1771293310150,1.25265432,1997.6,1996.4,0.49321108]
[1771293310484,0.0011,1997.6,1996.4,0.49321108]
[1771293311061,0.0011,1997.6,1996.8,1.2520032]
[1771293311262,0.0011,1997.6,1996.8,2.2560032]
[1771293311263,0.47164731,1997.6,1996.8,2.2560032]
[1771293311464,0.47164731,1997.6,1996.7,5.5012239]
[1771293311465,0.47164731,1997.6,1996.5,2.25612861]
[1771293311752,0.47054731,1997.2,1996.3,1.25231678]
[1771293313069,0.47054731,1997.2,1996.2,5.01051487]
[1771293313070,1.25181513,1997.1,1996.2,5.01051487]
[1771293313280,1.72236244,1997.1,1996.2,5.01051487]
[1771293313679,0.47054731,1996.8,1996.0,0.001]
[1771293314048,0.47807901,1996.7,1996.0,0.001]
[1771293314248,1.048,1996.8,1996.0,0.001]
[1771293315568,1.38107901,1996.9,1996.0,0.001]
[1771293315569,0.47807901,1996.9,1996.0,0.001]
[1771293316293,1.73002678,1996.9,1996.0,0.001]
[1771293317364,1.73002678,1996.9,1996.0,1.25350501]
[1771293319565,1.73002678,1996.9,1995.1,6.95452961]
[1771293319566,0.47807901,1996.5,1995.4,0.903]
[1771293319801,1.52907901,1996.5,1995.4,2.15585542]
[1771293319964,1.52907901,1996.5,1995.3,1.25289431]
[1771293319965,0.47807901,1996.3,1995.3,1.25289431]
[1771293320759,1.954,1996.5,1995.0,1.50659693]
[1771293320760,0.47807901,1996.1,1995.1,5.01219703]
[1771293321681,1.73044232,1996.3,1995.1,0.49959693]
[1771293321860,1.25220371,1996.5,1995.1,0.49959693]
[1771293323760,1.25220371,1996.5,1995.3,0.49959693]
[1771293323957,0.47807901,1996.4,1995.3,0.49959693]
[1771293324159,0.47807901,1996.4,1995.2,1.25300721]
[1771293324390,0.47807901,1996.2,1995.2,1.25300721]
[1771293324564,22.99242,1996.1,1995.1,1.25302273]
[1771293324773,0.47807901,1996.0,1995.1,1.25302273]
[1771293325789,1.25256776,1995.9,1995.0,5.01243846]
[1771293326371,1.25248053,1996.1,1995.0,5.51203539]
[1771293327510,1.25235893,1996.3,1995.1,0.49959693]
[1771293327992,1.73038,1996.4,1995.2,5.59260414]
[1771293328191,1.25222793,1996.5,1995.3,0.49959693]
[1771293328359,1.25222793,1996.5,1995.4,0.49959693]
[1771293328570,1.25217162,1996.6,1995.4,0.49959693]
[1771293330191,1.25217162,1996.6,1995.5,1.25281884]
[1771293330390,0.0011,1996.2,1995.5,1.25281884]
[1771293330600,0.0011,1996.2,1995.6,0.49959693]
[1771293332095,0.0011,1996.2,1995.5,1.007]
[1771293332687,0.0011,1996.2,1995.4,6.01727536]
[1771293333396,0.0011,1996.2,1995.4,5.01127536]
[1771293333585,0.0011,1996.2,1995.4,6.01927536]
[1771293334985,0.0011,1996.2,1995.3,1.25294441]
[1771293334986,0.47917901,1996.2,1995.3,1.25294441]
[1771293335383,0.47807901,1996.0,1995.2,1.25397438]
[1771293335918,0.47807901,1996.0,1995.2,0.001]
[1771293336094,0.47807901,1996.0,1995.2,1.25400027]
[1771293337001,1.25249193,1996.1,1995.2,0.001]
[1771293337197,0.47807901,1996.0,1995.2,0.001]
[1771293338992,1.73064677,1995.9,1995.2,0.001]
[1771293343182,0.47807901,1995.8,1995.2,0.001]
[1771293343714,1.73074512,1995.8,1995.2,0.001]
[1771293345110,1.73074512,1995.8,1995.3,0.001]
[1771293346413,0.48774621,1995.7,1995.3,0.001]
[1771293347891,1.74050227,1995.6,1995.3,0.001]
[1771293351008,0.48863151,1995.5,1995.3,0.001]
[1771293351546,0.48863151,1995.5,1994.7,5.01317595]
[1771293351884,0.48863151,1995.5,1994.5,8.85378677]
[1771293351885,0.48863151,1995.3,1994.3,1.25357268]
[1771293352087,0.48863151,1995.3,1994.3,1.74040686]
[1771293353291,0.48863151,1995.5,1994.4,0.48683418]
[1771293353524,1.25278069,1995.6,1994.4,0.48683418]
[1771293354701,1.7414122,1995.6,1994.6,0.48683418]
[1771293356033,0.48863151,1995.6,1994.6,0.48683418]
[1771293356334,1.042,1995.7,1994.6,0.48683418]
[1771293356632,1.53063151,1995.7,1994.7,0.47003418]
[1771293357835,0.48863151,1995.6,1994.8,1.25325847]
[1771293358006,0.48863151,1995.6,1994.8,1.74009265]
[1771293359209,0.48863151,1995.6,1994.6,4.32683418]
[1771293359534,0.48863151,1995.4,1994.6,1.25333966]
[1771293360102,1.25294441,1995.3,1994.4,1.25350982]
[1771293360328,1.74157592,1995.3,1994.4,1.25350982]
[1771293360514,1.74138757,1995.6,1994.5,0.48683418]
[1771293360918,0.48863151,1995.6,1994.5,0.48683418]
[1771293361110,2.29473067,1995.7,1994.5,0.48683418]
[1771293361329,2.29473067,1995.7,1994.4,1.25350982]
[1771293361330,1.7412904,1995.8,1994.7,0.48683418]
[1771293361531,1.7412904,1995.8,1994.8,0.48783418]
[1771293361731,0.0011,1995.6,1994.8,0.48783418]
[1771293361931,0.0011,1995.6,1994.9,0.48683418]
[1771293362303,0.0011,1995.6,1995.0,1.25313283]
[1771293362915,0.0011,1995.6,1995.0,1.73996701]
[1771293363102,0.48973151,1995.6,1994.9,1.25314439]
[1771293364426,1.74253884,1995.6,1994.9,1.25314439]
[1771293366838,0.48863151,1995.5,1994.9,1.25314439]
[1771293367621,0.0011,1995.6,1995.0,0.48683418]
[1771293368514,0.0011,1995.6,1995.1,1.7399042]
[1771293368952,0.0011,1995.6,1995.2,0.48683418]
[1771293369722,0.0011,1996.1,1995.2,0.48683418]
[1771293370741,0.0011,1996.1,1995.3,1.25294441]
[1771293371038,0.0011,1996.1,1995.3,1.73977859]
[1771293371341,0.0011,1996.1,1995.4,0.48683418]
[1771293371540,0.0011,1996.1,1995.3,1.25294441]
[1771293371541,0.48973151,1996.1,1995.3,1.25294441]
[1771293373026,0.48973151,1996.1,1995.0,1.25313283]
[1771293373027,0.48863151,1995.9,1995.0,1.25313283]
[1771293373441,0.48863151,1995.9,1994.9,1.2531494]
[1771293373831,0.48863151,1995.9,1994.9,1.73998358]
[1771293374038,0.47801466,1996.0,1995.0,0.48683418]
[1771293375247,0.47801466,1995.9,1995.1,1.25307002]
[1771293376226,0.0011,1996.0,1995.2,0.46261787]
[1771293376544,0.0011,1996.0,1995.3,1.001]
[1771293377525,0.0011,1996.0,1995.4,1.25288162]
[1771293382428,0.0011,1996.0,1995.4,1.71549949]
[1771293387443,0.47911466,1996.0,1995.4,1.25288162]
[1771293388171,0.47801466,1995.8,1994.8,0.001]
[1771293388339,0.47801466,1995.4,1994.8,0.001]
[1771293388948,0.47801466,1995.4,1994.2,1.25363554]
[1771293389155,0.47801466,1995.0,1994.2,1.25363554]
[1771293390275,0.47801466,1995.0,1994.1,2.2526536]
[1771293390471,0.47801466,1995.0,1994.1,2.25265661]
[1771293391345,0.47801466,1994.8,1994.1,2.25265661]
[1771293393171,0.47801466,1994.8,1994.1,1.25365661]
[1771293394076,0.47801466,1994.6,1993.9,1.25382416]
[1771293394567,0.47801466,1994.6,1994.1,0.3]
[1771293396283,0.47801466,1994.6,1994.1,1.55366377]
[1771293396960,1.25332206,1994.7,1994.1,1.55366377]
[1771293397162,1.73127558,1994.8,1994.1,1.55366377]
[1771293397960,0.47801466,1994.7,1994.1,1.55366377]
[1771293398461,1.73118122,1995.0,1994.1,2.01628164]
[1771293398662,0.47801466,1994.9,1994.1,1.55366377]
[1771293400291,0.47801466,1994.7,1994.1,0.3]
[1771293400769,1.25325847,1994.8,1994.1,0.3]
[1771293400770,0.47801466,1994.5,1994.1,0.3]
[1771293401098,0.47801466,1994.5,1993.5,5.01621852]
[1771293401984,0.47801466,1994.9,1993.6,0.46261787]
[1771293402188,0.47801466,1994.9,1993.5,5.01621852]
[1771293402189,0.47801466,1994.7,1993.5,5.01621852]
[1771293402486,0.47801466,1994.5,1993.5,5.01621852]
[1771293402695,0.47801466,1994.5,1993.5,1.25407574]
[1771293402997,0.47801466,1994.5,1993.3,1.2541508]
[1771293403289,0.47801466,1994.5,1992.8,1.71713412]
[1771293403290,0.47801466,1993.9,1992.8,1.71713412]
[1771293403670,0.47801466,1994.4,1993.0,0.46261787]
[1771293403875,0.47801466,1994.3,1993.0,0.46261787]
[1771293404273,0.47801466,1994.3,1994.0,0.001]
[1771293404483,1.73161664,1994.3,1994.0,0.001]
[1771293404686,0.47801466,1994.3,1994.0,0.001]
[1771293404896,1.73159274,1994.3,1994.0,0.001]
[1771293405469,0.47801466,1994.3,1994.0,0.001]
[1771293405891,1.73158808,1994.3,1994.0,0.001]
[1771293406102,0.47801466,1994.3,1994.0,0.001]
[1771293406276,1.70879596,1994.6,1994.0,0.001]
[1771293406797,1.70977479,1994.8,1994.0,0.001]
[1771293406984,0.45536909,1994.7,1994.0,0.001]
[1771293408369,0.40336909,1994.5,1994.0,0.001]
[1771293408779,1.25338413,1994.6,1994.0,0.001]
[1771293409200,0.45536909,1994.5,1994.0,0.001]
[1771293409595,0.41056909,1994.5,1994.0,0.001]
[1771293410598,1.25350982,1994.4,1994.0,0.001]
[1771293410799,1.73145897,1994.4,1994.0,0.001]
[1771293411497,0.47794915,1994.3,1994.0,0.001]
[1771293412400,1.25363554,1994.2,1994.0,0.001]
[1771293412600,0.47794915,1994.1,1993.2,1.25426449]
[1771293412774,2.28863554,1994.2,1993.2,1.70514099]
[1771293412978,2.28863554,1994.2,1993.3,0.4508765]
[1771293414403,2.76658469,1994.2,1993.3,0.4508765]
[1771293414893,2.76658469,1994.2,1993.4,1.25413865]
[1771293415686,0.47794915,1994.1,1993.4,1.25413865]
[1771293416012,0.47794915,1994.7,1993.5,0.4508765]
[1771293416181,0.47794915,1994.7,1993.6,0.4508765]
[1771293416385,0.47794915,1994.7,1993.4,3.61101515]
[1771293416585,1.25436566,1994.8,1993.4,1.70501515]
[1771293416586,0.47794915,1994.5,1993.4,1.70501515]
[1771293417010,1.25350982,1994.4,1993.4,1.70501515]
[1771293417211,1.25350982,1994.4,1993.5,0.4508765]
[1771293417588,1.73143876,1994.5,1993.5,0.4508765]
[1771293417804,1.73235765,1994.8,1993.5,0.4508765]
[1771293418109,0.0011,1994.4,1993.5,0.4508765]
[1771293418892,0.0011,1994.4,1993.9,1.70470066]
[1771293419200,0.0011,1994.8,1994.0,0.4508765]
[1771293419529,0.0011,1994.8,1994.2,0.4508765]
[1771293420283,6.52486364,1995.7,1994.5,0.4508765]
[1771293420284,1.73069099,1995.7,1994.5,0.4508765]
[1771293420490,0.47794915,1995.5,1994.0,0.4508765]
[1771293420690,0.47794915,1995.5,1994.1,1.911]
[1771293420888,1.25286704,1995.5,1994.3,1.25357268]
[1771293421112,1.942,1995.8,1994.6,0.4508765]
[1771293421715,1.942,1995.8,1994.3,1.25357268]
[1771293421716,0.47794915,1995.5,1994.3,1.25357268]
[1771293421885,3.19466781,1995.8,1994.3,1.25357268]
[1771293421886,0.47794915,1995.3,1994.3,1.25357268]
[1771293422083,0.47794915,1995.2,1994.3,1.25357268]
[1771293423021,0.47794915,1995.2,1993.9,0.904]
[1771293423022,0.47794915,1995.0,1993.9,6.02427429]
[1771293423691,0.47794915,1995.0,1993.9,5.01527429]
[1771293425014,1.73114479,1994.9,1993.9,5.01527429]
[1771293425223,0.47794915,1995.2,1994.0,0.4508765]
[1771293427004,1.25307002,1995.1,1994.1,1.25369841]
[1771293427325,1.73101917,1995.1,1994.1,1.25369841]
[1771293429233,1.73093965,1995.3,1994.2,0.4508765]
[1771293429804,1.25293304,1995.4,1994.2,0.4508765]
[1771293430008,0.47794915,1995.3,1994.2,0.4508765]
[1771293430842,0.47794915,1995.3,1994.3,1.012]
[1771293431223,1.25300721,1995.2,1994.4,1.25350982]
[1771293431535,1.73094058,1995.3,1994.4,1.25350982]
[1771293431840,0.47794915,1995.3,1994.4,1.25350982]
[1771293432401,0.47794915,1995.3,1994.4,1.70438632]
[1771293432609,0.47794915,1995.5,1994.4,1.25350982]
[1771293433014,0.0011,1995.1,1994.4,1.25350982]
[1771293433732,0.47904915,1995.1,1994.4,1.25350982]
[1771293434630,0.0011,1995.1,1994.4,1.72493779]
[1771293435321,0.0011,1995.1,1994.3,5.01403931]
[1771293435322,0.0011,1995.1,1994.5,0.47142797]
[1771293435545,0.0011,1995.1,1994.6,0.47142797]
[1771293437349,0.0011,1995.1,1994.7,1.2533213]
[1771293437544,0.0011,1995.1,1994.6,5.0132852]
[1771293437545,0.0011,1995.1,1994.5,2.26640442]
[1771293437754,0.47018673,1995.1,1994.2,1.2535879]
[1771293437956,0.46908673,1994.9,1994.0,2.26673111]
[1771293438246,0.46908673,1994.9,1994.1,1.25469334]
[1771293438616,0.46908673,1994.9,1994.1,0.001]
[1771293438812,0.46908673,1994.9,1994.1,1.25469314]
[1771293439548,1.25325847,1994.8,1994.1,0.001]
[1771293441360,1.7223452,1994.8,1994.1,0.001]
[1771293442130,0.46908673,1994.7,1994.1,0.001]
[1771293442333,0.46908673,1994.5,1994.1,0.001]
[1771293442755,0.46908673,1994.3,1994.1,0.001]
[1771293444047,1.25363554,1994.2,1994.1,0.001]
[1771293445177,1.25363554,1994.2,1994.0,0.001]
[1771293446473,2.76158227,1994.5,1994.0,0.001]
[1771293446972,2.76158227,1994.5,1994.1,0.001]
[1771293447971,0.903,1994.7,1994.1,0.001]
[1771293447972,5.48162773,1995.0,1994.1,0.001]
[1771293448198,1.72221956,1995.0,1994.1,0.001]
[1771293448865,1.25313283,1995.0,1994.1,0.47242797]
[1771293449442,2.76429658,1995.1,1994.1,0.47242797]
[1771293450537,0.46908673,1995.0,1994.2,1.25363554]
[1771293450874,0.46908673,1995.0,1994.1,1.25468232]
[1771293451168,0.46908673,1995.0,1994.1,0.001]
[1771293451370,0.46908673,1995.0,1994.1,1.25469531]
[1771293452782,1.72228237,1994.9,1994.1,0.001]
[1771293453846,0.46908673,1994.8,1994.1,0.001]
[1771293454785,0.46908673,1994.6,1994.1,0.001]
[1771293454992,1.2533213,1994.7,1994.1,0.001]
[1771293454993,0.46908673,1994.4,1994.1,0.001]
[1771293455704,0.46908673,1994.2,1994.0,0.001]
[1771293456785,1.72277058,1994.2,1994.0,0.001]
[1771293457280,0.46908673,1994.2,1994.0,0.001]
[1771293457492,2.75957971,1994.5,1994.0,0.001]
[1771293459487,1.037,1994.5,1994.0,0.001]
[1771293459681,1.25335836,1994.7,1994.0,0.001]
[1771293459880,1.037,1994.6,1994.0,0.001]
[1771293460284,1.037,1994.6,1994.1,0.001]
[1771293460285,1.50608673,1994.6,1994.1,0.001]
[1771293461205,1.25344697,1994.5,1994.1,0.001]
[1771293461504,1.50608673,1994.6,1994.1,0.001]
[1771293461715,2.75948922,1994.6,1994.1,0.001]
[1771293462576,1.50608673,1994.6,1994.1,0.001]
[1771293462778,1.037,1994.6,1994.1,0.001]
[1771293463382,0.0011,1994.8,1994.1,0.47242797]
[1771293463983,0.0011,1994.9,1994.2,0.48119149]
[1771293465311,0.0011,1994.9,1994.4,0.48119149]
[1771293467003,0.0011,1994.9,1994.3,1.25357268]
[1771293467199,0.0011,1994.9,1994.2,5.01429072]
[1771293468109,0.0011,1994.9,1994.3,0.48119149]
[1771293469515,0.0011,1994.9,1994.4,1.71742381]
[1771293473806,0.0011,1994.9,1994.5,0.46391399]
[1771293474918,0.0011,1994.8,1994.5,0.46391399]
[1771293475121,0.0011,1995.1,1994.6,0.46391399]
[1771293475901,0.0011,1995.1,1994.7,1.2533213]
[1771293476508,0.0011,1995.1,1994.8,0.46391399]
[1771293478098,0.0011,1995.2,1994.9,1.25319564]
[1771293478928,1.73467655,1995.8,1994.9,1.71710963]
[1771293478929,0.48201555,1995.8,1994.9,1.71710963]
[1771293479936,0.48201555,1995.8,1995.0,0.995]
[1771293480106,0.0011,1995.9,1995.1,1.25307002]
[1771293480514,1.25367394,1995.9,1995.1,1.25307002]
[1771293480738,0.48201555,1995.8,1995.0,2.24808403]
[1771293482602,0.48201555,1995.7,1995.0,2.24808403]
[1771293482809,0.48201555,1995.7,1994.8,0.993]
[1771293483051,0.48201555,1995.7,1994.7,0.992]
[1771293484101,1.25275606,1995.6,1994.8,1.25325847]
[1771293484307,1.25275606,1995.6,1994.4,1.25345885]
[1771293484308,0.48201555,1995.5,1994.4,1.25345885]
[1771293486332,0.48201555,1995.5,1994.3,5.01416856]
[1771293486333,0.48201555,1995.3,1994.3,0.46391399]
[1771293487744,0.48201555,1995.3,1994.5,0.001]
[1771293488054,0.48201555,1995.3,1994.5,0.46491399]
[1771293488360,1.25398162,1995.4,1994.7,0.46391399]
[1771293488361,0.0011,1995.4,1994.7,0.46391399]
[1771293488745,0.0011,1995.4,1994.6,2.24438413]
[1771293490168,0.0011,1995.4,1994.6,1.25338413]
[1771293490169,0.48311555,1995.4,1994.6,1.25338413]
[1771293490364,0.48201555,1995.2,1994.6,1.25338413]
[1771293490565,0.0011,1995.4,1994.6,1.71729812]
[1771293492261,0.0011,1995.4,1994.7,0.46391399]
[1771293492475,0.0011,1995.4,1994.8,1.25325847]
[1771293493446,0.48311555,1995.4,1994.8,1.25325847]
[1771293493651,0.48311555,1995.4,1994.6,5.01341608]
[1771293494887,1.73604788,1995.4,1994.6,5.01341608]
[1771293495964,0.48311555,1995.4,1994.6,5.01341608]
[1771293496282,0.48311555,1995.4,1994.6,5.50186959]
[1771293496613,0.0011,1995.4,1994.7,0.48845351]
[1771293496757,0.0011,1995.4,1994.8,1.25325847]
[1771293496957,0.0011,1995.4,1994.8,1.74171198]
[1771293500404,0.0011,1995.4,1994.9,0.48845351]
[1771293500898,0.0011,1995.7,1995.2,1.74146072]
[1771293501391,0.0011,1995.4,1995.3,0.48845351]
[1771293501594,0.0011,1995.7,1995.3,0.48845351]
[1771293501759,0.0011,1995.5,1995.3,0.48845351]
[1771293501964,0.0011,1995.7,1995.3,0.48845351]
[1771293503391,0.0011,1995.7,1995.4,1.25288162]
[1771293503896,0.0011,1995.7,1995.4,1.74133513]
[1771293504795,0.0011,1995.9,1995.4,2.72733513]
[1771293506391,0.0011,1995.9,1995.5,0.48845351]
[1771293506793,0.0011,1996.0,1995.5,0.48845351]
[1771293506794,0.0011,1996.2,1995.5,0.48845351]
[1771293507576,0.0011,1996.3,1995.7,0.48845351]
[1771293507779,0.0011,1996.3,1995.8,1.47445351]
[1771293508370,0.0011,1996.3,1995.9,0.48845351]
[1771293508901,0.49527262,1996.3,1995.8,0.986]
[1771293509077,0.49527262,1996.3,1995.6,1.25275606]
[1771293509282,0.49527262,1996.3,1995.4,0.985]
[1771293509691,0.49417262,1996.1,1995.4,0.985]
[1771293509900,0.49417262,1996.1,1995.4,2.23787384]
[1771293511398,0.49417262,1996.1,1995.4,2.23786892]
[1771293511697,1.25250501,1996.0,1995.4,2.23786892]
[1771293511902,1.74667763,1996.0,1995.4,0.985]
[1771293513467,1.74777763,1996.0,1995.4,0.985]
[1771293513678,0.49417262,1995.9,1995.4,0.985]
[1771293513902,1.7467702,1995.9,1995.4,0.985]
[1771293514971,0.0011,1996.0,1995.4,2.72633375]
[1771293515183,0.0011,1996.0,1995.4,2.23788024]
[1771293518526,0.0011,1996.0,1995.4,2.72633375]
[1771293518721,0.0011,1996.0,1995.5,0.48845351]
[1771293520530,0.0011,1996.0,1995.6,1.25275606]
[1771293523045,0.0011,1996.0,1995.6,1.74120957]
[1771293523343,0.0011,1996.0,1995.6,1.25275606]
[1771293523743,0.49527262,1996.0,1995.6,1.25275606]
[1771293524149,0.49527262,1996.0,1995.4,0.985]
[1771293524317,0.49527262,1996.0,1995.1,1.25307002]
[1771293524518,0.49527262,1996.0,1995.0,5.91628008]
[1771293524519,0.45635511,1995.8,1995.0,3.14010455]
[1771293525543,0.45635511,1995.8,1995.0,3.14012724]
[1771293526444,1.25269329,1995.7,1995.5,0.001]
[1771293526624,0.45635511,1995.6,1995.5,0.001]
[1771293529357,1.70911117,1995.6,1995.5,0.001]
[1771293530632,0.45635511,1995.6,1995.5,0.001]
[1771293533372,1.70911117,1995.6,1995.5,0.001]
[1771293533546,0.45635511,1995.6,1995.5,0.001]
[1771293535057,1.70911117,1995.6,1995.5,0.001]
[1771293535357,0.48406753,1995.5,1995.2,0.001]
[1771293535659,0.48406753,1995.5,1994.9,0.001]
[1771293536250,0.48406753,1995.5,1994.9,1.25418798]
[1771293536445,0.48406753,1995.5,1994.9,0.001]
[1771293538259,1.73682775,1995.6,1994.9,0.001]
[1771293538765,1.73683123,1995.6,1994.9,0.001]
[1771293539161,1.73683683,1995.6,1994.9,0.001]
[1771293539746,0.48406753,1995.6,1994.9,0.001]
[1771293540257,1.73683327,1995.6,1994.9,0.001]
[1771293540842,1.73683327,1995.6,1995.0,0.001]
[1771293541042,0.48406753,1995.6,1995.0,0.001]
[1771293541239,2.7227377,1995.8,1995.0,0.001]
[1771293541463,0.48406753,1995.7,1995.0,0.001]
[1771293541866,5.01035102,1995.9,1995.0,0.001]
[1771293541867,1.73665899,1995.9,1995.0,0.45462035]
[1771293542964,0.48406753,1995.9,1995.0,0.45462035]
[1771293543167,1.73663753,1995.9,1995.0,0.45462035]
[1771293543346,1.73663753,1995.9,1995.1,1.25307002]
[1771293547152,1.25365194,1996.0,1995.2,0.45362035]
[1771293547475,0.48406753,1995.9,1995.2,0.45362035]
[1771293548661,0.48406753,1995.9,1995.1,1.25307002]
[1771293549057,0.48406753,1995.8,1995.1,1.25307002]
[1771293549254,0.48406753,1995.8,1995.1,1.70669037]
[1771293549584,1.7377244,1996.0,1995.1,1.70669037]
[1771293550779,0.48516753,1996.0,1995.2,0.45362035]
[1771293551088,0.0011,1996.0,1995.4,0.45362035]
[1771293552671,0.0011,1995.8,1995.4,0.45362035]
[1771293553182,0.0011,1995.8,1995.2,3.84]
[1771293553183,0.48516753,1995.8,1995.2,3.84]
[1771293553391,0.48516753,1995.8,1995.2,1.25296842]
[1771293557060,0.48516753,1995.8,1995.1,5.01320396]
[1771293557264,0.48516753,1995.8,1995.1,5.47844275]
[1771293557460,0.45117274,1995.7,1995.1,5.01320396]
[1771293558587,0.0011,1995.8,1995.1,5.47844275]
[1771293558768,1.7049043,1995.8,1995.1,5.47844275]
[1771293560298,0.45227274,1995.8,1995.1,5.47844275]
[1771293560588,0.45117274,1995.7,1995.1,5.01320396]
[1771293560812,0.45117274,1995.7,1995.1,0.001]
[1771293562292,1.25275606,1995.6,1995.1,0.001]
[1771293562590,0.45117274,1995.5,1995.1,0.001]
[1771293564903,1.70404289,1995.5,1995.1,0.001]
[1771293565401,0.45117274,1995.4,1995.1,0.001]
[1771293567113,0.45117274,1995.4,1994.9,0.001]
[1771293567114,0.45117274,1995.2,1994.9,0.001]
[1771293570109,1.70418018,1995.2,1994.9,0.001]
[1771293570297,0.45117274,1995.2,1994.9,0.001]
[1771293570498,1.25299036,1995.3,1994.9,0.001]
[1771293570499,2.67710229,1995.4,1994.9,0.001]
[1771293570693,1.70407101,1995.4,1994.9,0.001]
[1771293571418,0.45117274,1995.4,1994.9,0.001]
[1771293573511,1.7040576,1995.4,1994.9,0.001]
[1771293573696,0.45117274,1995.3,1994.9,0.001]
[1771293575789,1.25290761,1995.4,1994.9,0.001]
[1771293576001,0.45117274,1995.3,1994.9,0.001]
[1771293577814,0.45117274,1995.3,1995.0,0.001]
[1771293578020,0.45117274,1995.2,1995.0,0.001]
[1771293578985,0.45117274,1995.2,1994.8,0.001]
[1771293580419,0.45117274,1995.4,1994.8,0.001]
[1771293581515,2.6769588,1995.6,1994.8,0.46623879]
[1771293582217,2.6769588,1995.6,1994.9,1.25319564]
[1771293582713,0.45117274,1995.5,1994.8,1.71945021]
[1771293583928,0.45117274,1995.5,1994.8,0.001]
[1771293585411,0.45261233,1995.3,1994.8,0.001]
[1771293587322,0.45261233,1995.3,1994.7,0.001]
[1771293587522,0.45261233,1995.3,1994.5,0.001]
[1771293587523,2.67866946,1995.2,1994.5,0.001]
[1771293587723,0.45261233,1995.1,1994.5,0.001]
[1771293589321,2.22605713,1995.2,1994.9,0.001]
[1771293589524,2.70222006,1995.2,1994.9,0.001]
[1771293591038,0.0011,1995.2,1994.9,0.001]
[1771293591719,6.48258011,1995.2,1994.9,0.001]
[1771293591920,0.47616293,1995.2,1994.9,0.001]
[1771293593539,1.72813295,1995.1,1994.9,0.001]
[1771293593940,0.47506293,1995.0,1994.9,0.001]
[1771293594440,1.25307002,1995.1,1994.9,0.001]
[1771293594814,1.72813295,1995.1,1994.9,0.001]
[1771293595120,1.72813295,1995.1,1993.6,0.48628473]